fUSD/lending_fUSD_20241018
["ID","MTS","AMOUNT","RATE_DAILY","PERIOD"]
[340414970,1729224646211,-500.0,0.00010958,2]
[340414971,1729224646220,-500.0,0.00010958,2]
[340414972,1729224646230,-500.0,0.00010958,2]
[340414973,1729224646239,-500.0,0.00010958,2]
[340414974,1729224646249,-458.89370227,0.00010958,2]
[340414975,1729224646259,-500.0,0.00010958,2]
[340414976,1729224646268,-192.19107065,0.00010958,2]
[340414977,1729224646278,-500.0,0.00010958,2]
[340414978,1729224646287,-500.0,0.00010958,2]
[340414979,1729224646297,-500.0,0.00010958,2]
[340414980,1729224646307,-500.0,0.00010958,2]
[340414981,1729224646316,-500.0,0.00010958,2]
[340414982,1729224646325,-500.0,0.00010958,2]
[340414983,1729224646335,-500.0,0.00010958,2]
[340414984,1729224646345,-500.0,0.00010958,2]
[340414985,1729224646355,-500.0,0.00010958,2]
[340414986,1729224646365,-500.0,0.00010958,2]
[340414987,1729224646374,-500.0,0.00010958,2]
[340414988,1729224646384,-500.0,0.00010958,2]
[340414989,1729224646394,-500.0,0.00010958,2]
[340414990,1729224646404,-500.0,0.00010958,2]
[340414991,1729224646413,-500.0,0.00010958,2]
[340414992,1729224646423,-500.0,0.00010958,2]
[340414993,1729224646433,-500.0,0.00010958,2]
[340414994,1729224646442,-500.0,0.00010958,2]
[340414995,1729224646452,-500.0,0.00010958,2]
[340414996,1729224646462,-500.0,0.00010958,2]
[340414997,1729224646471,-500.0,0.00010958,2]
[340414998,1729224646481,-500.0,0.00010958,2]
[340414999,1729224646490,-500.0,0.00010958,2]
[340415000,1729224646500,-155.73814142,0.00010958,2]
[340415001,1729224646509,-500.0,0.00010958,2]
[340415002,1729224646518,-500.0,0.00010958,2]
[340415003,1729224646527,-500.0,0.00010958,2]
[340415004,1729224646537,-500.0,0.00010958,2]
[340415005,1729224646547,-201.53739008,0.00010958,2]
[340415006,1729224646556,-500.0,0.00010958,2]
[340415007,1729224646565,-500.0,0.00010958,2]
[340415008,1729224646575,-500.0,0.00010958,2]
[340415009,1729224646584,-500.0,0.00010958,2]
[340415010,1729224646593,-500.0,0.00010958,2]
[340415011,1729224646603,-416.29432619,0.00010958,2]
[340415012,1729224646611,-500.0,0.00010958,2]
[340415013,1729224646621,-500.0,0.00010958,2]
[340415014,1729224646631,-500.0,0.00010958,2]
[340415015,1729224646640,-500.0,0.00010958,2]
[340415016,1729224646649,-500.0,0.00010958,2]
[340415017,1729224646659,-500.0,0.00010958,2]
[340415018,1729224646669,-500.0,0.00010958,2]
[340415019,1729224646679,-500.0,0.00010958,2]
[340415020,1729224646689,-500.0,0.00010958,2]
[340415021,1729224646698,-500.0,0.00010958,2]
[340415022,1729224646707,-500.0,0.00010958,2]
[340415023,1729224646717,-501.46918482,0.00010958,2]
[340415024,1729224646726,-500.0,0.00010958,2]
[340415025,1729224646735,-1657.06,0.00010958,2]
[340415026,1729224646745,-500.0,0.00010958,2]
[340415027,1729224646754,-500.0,0.00010958,2]
[340415028,1729224646763,-1657.06,0.00010958,2]
[340415029,1729224646773,-552.42368131,0.00010958,2]
[340415030,1729224646783,-500.0,0.00010958,2]
[340415031,1729224646793,-1657.06,0.00010958,2]
[340415032,1729224646803,-500.0,0.00010958,2]
[340415033,1729224646812,-1657.06,0.00010958,2]
[340415034,1729224646822,-500.0,0.00010958,2]
[340415035,1729224646831,-1657.06,0.00010958,2]
[340415036,1729224646841,-1744.32,0.00010958,2]
[340415037,1729224646850,-183.80606705,0.00010958,2]
[340415038,1729224646860,-1744.32,0.00010958,2]
[340415039,1729224646869,-1657.06,0.00010958,2]
[340415040,1729224646879,-1744.32,0.00010958,2]
[340415041,1729224646888,-1657.06,0.00010958,2]
[340415042,1729224646898,-500.0,0.00010958,2]
[340415043,1729224646910,-1744.32,0.00010958,2]
[340415044,1729224646920,-1657.06,0.00010958,2]
[340415045,1729224646930,-500.0,0.00010958,2]
[340415046,1729224646939,-1744.32,0.00010958,2]
[340415047,1729224646950,-1657.06,0.00010958,2]
[340415048,1729224646959,-500.0,0.00010958,2]
[340415049,1729224646968,-1744.32,0.00010958,2]
[340415050,1729224646979,-1657.06,0.00010958,2]
[340415051,1729224646988,-500.0,0.00010958,2]
[340415052,1729224646997,-1744.32,0.00010958,2]
[340415053,1729224647006,-1657.06,0.00010958,2]
[340415054,1729224647015,-573.02724358,0.00010958,2]
[340415055,1729224647025,-1744.32,0.00010958,2]
[340415056,1729224647034,-1657.06,0.00010958,2]
[340415057,1729224647043,-500.0,0.00010958,2]
[340415058,1729224647052,-1657.06,0.00010958,2]
[340415059,1729224647062,-1744.32,0.00010958,2]
[340415060,1729224647071,-500.0,0.00010958,2]
[340415061,1729224647081,-1657.06,0.00010958,2]
[340415062,1729224647091,-1744.32,0.00010958,2]
[340415063,1729224647100,-500.0,0.00010958,2]
[340415064,1729224647109,-1657.06,0.00010958,2]
[340415065,1729224647128,-1744.32,0.00010958,2]
[340415066,1729224647138,-500.0,0.00010958,2]
[340415067,1729224647149,-1657.06,0.00010958,2]
[340415068,1729224647160,-1744.32,0.00010958,2]
[340415069,1729224647170,-500.0,0.00010958,2]
[340415070,1729224647180,-1657.06,0.00010958,2]
[340415071,1729224647190,-500.0,0.00010958,2]
[340415072,1729224647203,-1657.06,0.00010958,2]
[340415073,1729224647212,-1744.32,0.00010958,2]
[340415074,1729224647221,-503.37841372,0.00010958,2]
[340415075,1729224647231,-1657.06,0.00010958,2]
[340415076,1729224647240,-1744.32,0.00010958,2]
[340415077,1729224647249,-1657.06,0.00010958,2]
[340415078,1729224647259,-1744.32,0.00010958,2]
[340415079,1729224647270,-1657.06,0.00010958,2]
[340415080,1729224647282,-1744.32,0.00010958,2]
[340415081,1729224647292,-1657.06,0.00010958,2]
[340415082,1729224647303,-1657.06,0.00010958,2]
[340415083,1729224647313,-1744.32,0.00010958,2]
[340415084,1729224647324,-1657.128935,0.00010958,2]
[340415085,1729224647334,-1744.32,0.00010958,2]
[340415086,1729224647344,-1744.32,0.00010958,2]
[340415087,1729224647355,-1744.32,0.00010958,2]
[340415088,1729224647367,-1744.32,0.00010958,2]
[340415089,1729224647378,-1744.32,0.00010958,2]
[340415090,1729224647389,-1744.32,0.00010958,2]
[340415091,1729224647399,-1744.52004469,0.00010958,2]
[340415092,1729224647409,-500.0,0.00010958,2]
[340415093,1729224647629,-492.80815222,0.00010958,2]
[340415094,1729224647640,-676.92,0.00010958,2]
[340415095,1729224647650,-500.0,0.00010958,2]
[340415096,1729224647662,-676.92,0.00010958,2]
[340415097,1729224647672,-511.8767663,0.00010958,2]
[340415098,1729224647681,-676.92,0.00010958,2]
[340415099,1729224647690,-676.92,0.00010958,2]
[340415100,1729224647700,-676.92,0.00010958,2]
[340415101,1729224647709,-676.92,0.00010958,2]
[340415102,1729224647718,-676.92,0.00010958,2]
[340415103,1729224647728,-676.92,0.00010958,2]
[340415104,1729224647737,-676.92,0.00010958,2]
[340415105,1729224647747,-500.0,0.00010958,2]
[340415106,1729224647757,-676.92,0.00010958,2]
[340415107,1729224647767,-500.0,0.00010958,2]
[340415108,1729224647777,-676.92,0.00010958,2]
[340415109,1729224647787,-500.0,0.00010958,2]
[340415110,1729224647797,-676.92,0.00010958,2]
[340415111,1729224647806,-500.0,0.00010958,2]
[340415112,1729224647816,-676.92,0.00010958,2]
[340415113,1729224647825,-552.99570859,0.00010958,2]
[340415114,1729224647834,-676.92,0.00010958,2]
[340415115,1729224647843,-676.92,0.00010958,2]
[340415116,1729224647852,-676.92,0.00010958,2]
[340415117,1729224647862,-676.92,0.00010958,2]
[340415118,1729224647871,-676.92,0.00010958,2]
[340415119,1729224647881,-500.0,0.00010958,2]
[340415120,1729224647891,-676.92,0.00010958,2]
[340415121,1729224647901,-525.81840424,0.00010958,2]
[340415122,1729224647913,-500.0,0.00010958,2]
[340415123,1729224647923,-500.0,0.00010958,2]
[340415124,1729224647932,-509.63013551,0.00010958,2]
[340415125,1729224647941,-500.0,0.00010958,2]
[340415126,1729224647950,-500.0,0.00010958,2]
[340415127,1729224647959,-500.0,0.00010958,2]
[340415128,1729224647968,-500.0,0.00010958,2]
[340415129,1729224647977,-339.52489146,0.00010958,2]
[340415130,1729224647986,-500.0,0.00010958,2]
[340415131,1729224647996,-500.0,0.00010958,2]
[340415132,1729224648006,-500.0,0.00010958,2]
[340415133,1729224648015,-328.740998,0.00010958,2]
[340415134,1729224648024,-500.0,0.00010958,2]
[340415135,1729224648033,-1417.21,0.00010958,2]
[340415136,1729224648043,-500.0,0.00010958,2]
[340415137,1729224648052,-1417.21,0.00010958,2]
[340415138,1729224648061,-500.0,0.00010958,2]
[340415139,1729224648071,-1417.21,0.00010958,2]
[340415140,1729224648080,-500.0,0.00010958,2]
[340415141,1729224648089,-1417.21,0.00010958,2]
[340415142,1729224648098,-500.0,0.00010958,2]
[340415143,1729224648107,-1417.21,0.00010958,2]
[340415144,1729224648116,-415.8765505,0.00010958,2]
[340415145,1729224648126,-1417.21,0.00010958,2]
[340415146,1729224648135,-1417.21,0.00010958,2]
[340415147,1729224648144,-500.0,0.00010958,2]
[340415148,1729224648153,-500.0,0.00010958,2]
[340415149,1729224648162,-676.92,0.00010958,2]
[340415150,1729224648171,-500.0,0.00010958,2]
[340415151,1729224648181,-676.92,0.00010958,2]
[340415152,1729224648191,-1417.21,0.00010958,2]
[340415153,1729224648201,-500.0,0.00010958,2]
[340415154,1729224648210,-676.92,0.00010958,2]
[340415155,1729224648220,-1417.21,0.00010958,2]
[340415156,1729224648229,-2000.0,0.00010958,2]
[340415157,1729224648238,-537.0957131,0.00010958,2]
[340415158,1729224648248,-513.18651386,0.00010958,2]
[340415159,1729224648257,-500.0,0.00010958,2]
[340415160,1729224648266,-1417.21,0.00010958,2]
[340415161,1729224648276,-676.92,0.00010958,2]
[340415162,1729224648285,-500.0,0.00010958,2]
[340415163,1729224648296,-1417.21,0.00010958,2]
[340415164,1729224648305,-677.08335056,0.00010958,2]
[340415165,1729224648315,-500.0,0.00010958,2]
[340415166,1729224648324,-1417.21,0.00010958,2]
[340415167,1729224648333,-500.0,0.00010958,2]
[340415168,1729224648343,-568.48418077,0.00010958,2]
[340415169,1729224648352,-1417.21,0.00010958,2]
[340415170,1729224648361,-500.0,0.00010958,2]
[340415171,1729224648370,-1417.21,0.00010958,2]
[340415172,1729224648379,-500.0,0.00010958,2]
[340415173,1729224648389,-1417.21,0.00010958,2]
[340415174,1729224648398,-500.0,0.00010958,2]
[340415175,1729224648408,-1417.21,0.00010958,2]
[340415176,1729224648417,-500.0,0.00010958,2]
[340415177,1729224648427,-536.65566133,0.00010958,2]
[340415178,1729224648436,-1417.21,0.00010958,2]
[340415179,1729224648445,-500.0,0.00010958,2]
[340415180,1729224648454,-1417.21,0.00010958,2]
[340415181,1729224648463,-500.0,0.00010958,2]
[340415182,1729224648472,-1417.21,0.00010958,2]
[340415183,1729224648481,-500.0,0.00010958,2]
[340415184,1729224648491,-500.0,0.00010958,2]
[340415185,1729224648501,-200.0,0.00010958,2]
[340415186,1729224648510,-1417.21,0.00010958,2]
[340415187,1729224648519,-500.0,0.00010958,2]
[340415188,1729224648528,-500.0,0.00010958,2]
[340415189,1729224648538,-1417.21,0.00010958,2]
[340415190,1729224648547,-500.0,0.00010958,2]
[340415191,1729224648556,-500.0,0.00010958,2]
[340415192,1729224648565,-1417.21,0.00010958,2]
[340415193,1729224648575,-500.0,0.00010958,2]
[340415194,1729224648584,-500.0,0.00010958,2]
[340415195,1729224648593,-1417.21,0.00010958,2]
[340415196,1729224648602,-500.0,0.00010958,2]
[340415197,1729224648612,-500.0,0.00010958,2]
[340415198,1729224648621,-1417.21726228,0.00010958,2]
[340415199,1729224648631,-500.0,0.00010958,2]
[340415200,1729224648640,-500.0,0.00010958,2]
[340415201,1729224648649,-66.86818788,0.00010958,2]
[340415202,1729224648824,-433.13181212,0.00010958,2]
[340415203,1729224648834,-278.21669038,0.00010958,2]
[340415204,1729224648850,-209.11918782,0.00010958,2]
[340415205,1729224648860,-500.0,0.00010958,2]
[340415206,1729224648869,-550.72250516,0.00010958,2]
[340415207,1729224648879,-500.0,0.00010958,2]
[340415208,1729224648888,-253.66946326,0.00010958,2]
[340415209,1729224648897,-500.0,0.00010958,2]
[340415210,1729224648910,-42.30347516,0.00010958,2]
[340415211,1729224648925,-457.69652484,0.00010958,2]
[340415212,1729224648934,-572.98834053,0.00010958,2]
[340415213,1729224648943,-1593.43,0.00010958,2]
[340415214,1729224648954,-500.0,0.00010958,2]
[340415215,1729224648964,-1593.43,0.00010958,2]
[340415216,1729224648973,-500.0,0.00010958,2]
[340415217,1729224648983,-1593.43,0.00010958,2]
[340415218,1729224648992,-521.49412373,0.00010958,2]
[340415219,1729224649001,-500.0,0.00010958,2]
[340415220,1729224649010,-1138.2219845,0.00010958,2]
[340415221,1729224649027,-455.2080155,0.00010958,2]
[340415222,1729224649036,-77.2919845,0.00010958,2]
[340415223,1729224649048,-422.7080155,0.00010958,2]
[340415224,1729224649057,-1593.43,0.00010958,2]
[340415225,1729224649066,-500.0,0.00010958,2]
[340415226,1729224649076,-1593.43,0.00010958,2]
[340415227,1729224649085,-500.0,0.00010958,2]
[340415228,1729224649095,-298.78113218,0.00010958,2]
[340415229,1729224649104,-1593.43,0.00010958,2]
[340415230,1729224649114,-502.3494117,0.00010958,2]
[340415231,1729224649123,-1593.43,0.00010958,2]
[340415232,1729224649132,-500.0,0.00010958,2]
[340415233,1729224649141,-1593.43,0.00010958,2]
[340415234,1729224649151,-500.0,0.00010958,2]
[340415235,1729224649160,-500.0,0.00010958,2]
[340415236,1729224649169,-1593.43,0.00010958,2]
[340415237,1729224649179,-255.23468012,0.00010958,2]
[340415238,1729224649188,-500.0,0.00010958,2]
[340415239,1729224649197,-1593.43,0.00010958,2]
[340415240,1729224649206,-1593.43,0.00010958,2]
[340415241,1729224649215,-500.0,0.00010958,2]
[340415242,1729224649225,-1593.43,0.00010958,2]
[340415243,1729224649235,-500.0,0.00010958,2]
[340415244,1729224649244,-1593.43,0.00010958,2]
[340415245,1729224649254,-597.39152719,0.00010958,2]
[340415246,1729224649263,-1593.43,0.00010958,2]
[340415247,1729224649272,-1593.43,0.00010958,2]
[340415248,1729224649282,-1146.86,0.00010958,2]
[340415249,1729224649291,-500.0,0.00010958,2]
[340415250,1729224649300,-500.0,0.00010958,2]
[340415251,1729224649309,-1146.86,0.00010958,2]
[340415252,1729224649319,-500.0,0.00010958,2]
[340415253,1729224649328,-1593.43,0.00010958,2]
[340415254,1729224649337,-500.0,0.00010958,2]
[340415255,1729224649346,-1146.86,0.00010958,2]
[340415256,1729224649356,-383.67404739,0.00010958,2]
[340415257,1729224649365,-1593.43,0.00010958,2]
[340415258,1729224649375,-500.0,0.00010958,2]
[340415259,1729224649384,-1146.86,0.00010958,2]
[340415260,1729224649393,-1593.43,0.00010958,2]
[340415261,1729224649403,-500.0,0.00010958,2]
[340415262,1729224649412,-1146.86,0.00010958,2]
[340415263,1729224649421,-1593.43,0.00010958,2]
[340415264,1729224649434,-500.0,0.00010958,2]
[340415265,1729224649443,-1146.86,0.00010958,2]
[340415266,1729224649452,-1593.43,0.00010958,2]
[340415267,1729224649462,-207.33389423,0.00010958,2]
[340415268,1729224649471,-1146.86,0.00010958,2]
[340415269,1729224649480,-1593.43,0.00010958,2]
[340415270,1729224649489,-1146.86,0.00010958,2]
[340415271,1729224649499,-500.0,0.00010958,2]
[340415272,1729224649508,-1593.43,0.00010958,2]
[340415273,1729224649518,-1146.86,0.00010958,2]
[340415274,1729224649527,-500.0,0.00010958,2]
[340415275,1729224649537,-550.06990092,0.00010958,2]
[340415276,1729224649586,-250.72530513,0.00010958,2]
[340415277,1729224649598,-792.67042533,0.00010958,2]
[340415278,1729224649607,-1146.86,0.00010958,2]
[340415279,1729224649616,-500.0,0.00010958,2]
[340415280,1729224649626,-500.0,0.00010958,2]
[340415281,1729224649635,-662.68152983,0.00010958,2]
[340415282,1729224649649,-484.17847017,0.00010958,2]
[340415283,1729224649658,-1.88225104,0.00010958,2]
[340415284,1729224649670,-498.11774896,0.00010958,2]
[340415285,1729224649680,-829.25741734,0.00010958,2]
[340415286,1729224649692,-317.60258266,0.00010958,2]
[340415287,1729224649702,-38.1216686,0.00010958,2]
[340415288,1729224649714,-574.66213607,0.00010958,2]
[340415289,1729224649725,-1146.86,0.00010958,2]
[340415290,1729224649735,-500.0,0.00010958,2]
[340415291,1729224649744,-1146.86,0.00010958,2]
[340415292,1729224649753,-500.0,0.00010958,2]
[340415293,1729224649763,-1146.86,0.00010958,2]
[340415294,1729224649774,-500.0,0.00010958,2]
[340415295,1729224649783,-1146.86,0.00010958,2]
[340415296,1729224649792,-500.0,0.00010958,2]
[340415297,1729224649802,-500.0,0.00010958,2]
[340415298,1729224649811,-1146.86,0.00010958,2]
[340415299,1729224649820,-500.0,0.00010958,2]
[340415300,1729224649829,-1146.86,0.00010958,2]
[340415301,1729224649838,-500.0,0.00010958,2]
[340415302,1729224649847,-1146.86,0.00010958,2]
[340415303,1729224649857,-500.0,0.00010958,2]
[340415304,1729224649866,-1146.86,0.00010958,2]
[340415305,1729224649875,-562.52031378,0.00010958,2]
[340415306,1729224649884,-1146.86,0.00010958,2]
[340415307,1729224649893,-500.0,0.00010958,2]
[340415308,1729224649903,-500.0,0.00010958,2]
[340415309,1729224649912,-1146.86,0.00010958,2]
[340415310,1729224649922,-500.0,0.00010958,2]
[340415311,1729224649932,-367.08051293,0.00010958,2]
[340415312,1729224649942,-500.0,0.00010958,2]
[340415313,1729224649952,-1146.86,0.00010958,2]
[340415314,1729224649961,-500.0,0.00010958,2]
[340415315,1729224649970,-1036.83850909,0.00010958,2]
[340415316,1729224650000,-110.05162157,0.00010958,2]
[340415317,1729224650010,-500.0,0.00010958,2]
[340415318,1729224650020,-381.78752849,0.00010958,2]
[340415319,1729224650408,-118.21247151,0.00010958,2]
[340415320,1729224650418,-500.0,0.00010958,2]
[340415321,1729224650427,-64.39276033,0.00010958,2]
[340415322,1729224650439,-481.68868382,0.00010958,2]
[340415323,1729224650449,-500.0,0.00010958,2]
[340415324,1729224650458,-52.66631618,0.00010958,2]
[340415325,1729224650472,-447.33368382,0.00010958,2]
[340415326,1729224650482,-500.0,0.00010958,2]
[340415327,1729224650492,-500.0,0.00010958,2]
[340415328,1729224650501,-500.0,0.00010958,2]
[340415329,1729224650510,-500.0,0.00010958,2]
[340415330,1729224650519,-500.0,0.00010958,2]
[340415331,1729224650528,-500.0,0.00010958,2]
[340415332,1729224650537,-500.0,0.00010958,2]
[340415333,1729224650547,-509.66142119,0.00010958,2]
[340415334,1729224650558,-500.0,0.00010958,2]
[340415335,1729224650568,-500.0,0.00010958,2]
[340415336,1729224650578,-500.0,0.00010958,2]
[340415337,1729224650588,-500.0,0.00010958,2]
[340415338,1729224650597,-500.0,0.00010958,2]
[340415339,1729224650607,-500.0,0.00010958,2]
[340415340,1729224650799,-500.0,0.00010958,2]
[340415341,1729224650809,-500.0,0.00010958,2]
[340415342,1729224650818,-1481.36,0.00010958,2]
[340415343,1729224650828,-372.52211636,0.00010958,2]
[340415344,1729224650855,-77.04764573,0.00010958,2]
[340415345,1729224650865,-500.0,0.00010958,2]
[340415346,1729224650874,-500.0,0.00010958,2]
[340415347,1729224650884,-500.0,0.00010958,2]
[340415348,1729224650894,-389.18833083,0.00010958,2]
[340415349,1729224650910,-1092.17166917,0.00010958,2]
[340415350,1729224650920,-500.0,0.00010958,2]
[340415351,1729224650930,-500.0,0.00010958,2]
[340415352,1729224650939,-500.0,0.00010958,2]
[340415353,1729224650951,-1481.36,0.00010958,2]
[340415354,1729224650962,-540.72416182,0.00010958,2]
[340415355,1729224650972,-269.61488132,0.00010958,2]
[340415356,1729224651616,-520.0,0.00010958,2]
[340415357,1729224651626,-230.38511868,0.00010958,2]
[340415358,1729224651635,-500.0,0.00010958,2]
[340415359,1729224651645,-500.0,0.00010958,2]
[340415360,1729224651654,-500.0,0.00010958,2]
[340415361,1729224651663,-343.26846947,0.00010958,2]
[340415362,1729224651672,-500.0,0.00010958,2]
[340415363,1729224651682,-500.0,0.00010958,2]
[340415364,1729224651691,-500.0,0.00010958,2]
[340415365,1729224651701,-500.0,0.00010958,2]
[340415366,1729224651710,-500.0,0.00010958,2]
[340415367,1729224651719,-3293.54,0.00010958,2]
[340415368,1729224651728,-475.52438688,0.00010958,2]
[340415369,1729224651737,-28.2848144,0.00010958,2]
[340415370,1729224651757,-373.5132,0.00010958,2]
[340415371,1729224651768,-98.2019856,0.00010958,2]
[340415372,1729224651777,-207.47683172,0.00010958,2]
[340415373,1729224651789,-683.75410644,0.00010958,2]
[340415374,1729224651800,-307.32845348,0.00010958,2]
[340415375,1729224651811,-529.685291,0.00010958,2]
[340415376,1729224651822,-1565.29531736,0.00010958,2]
[340415377,1729224651839,-500.0,0.00010958,2]
[340415378,1729224651849,-3293.54,0.00010958,2]
[340415379,1729224651859,-314.77965478,0.00010958,2]
[340415380,1729224651868,-1445.22,0.00010958,2]
[340415381,1729224651877,-3293.54,0.00010958,2]
[340415382,1729224651886,-500.0,0.00010958,2]
[340415383,1729224651895,-80.2943897,0.00010958,2]
[340415384,1729224651913,-1364.9256103,0.00010958,2]
[340415385,1729224651922,-303.09736078,0.00010958,2]
[340415386,1729224651935,-196.90263922,0.00010958,2]
[340415387,1729224651944,-796.22472119,0.00010958,2]
[340415388,1729224651955,-738.48,0.00010958,2]
[340415389,1729224651966,-542.6096995,0.00010958,2]
[340415390,1729224651983,-259.98060429,0.00010958,2]
[340415391,1729224651994,-710.18133522,0.00010958,2]
[340415392,1729224652004,-246.0636398,0.00010958,2]
[340415393,1729224652013,-124.84497004,0.00010958,2]
[340415394,1729224652025,-375.15502996,0.00010958,2]
[340415395,1729224652034,-1445.22,0.00010958,2]
[340415396,1729224652042,-66.27354176,0.00010958,2]
[340415397,1729224652054,-311.7686698,0.00010958,2]
[340415398,1729224652068,-2915.49778844,0.00010958,2]
[340415399,1729224652077,-500.0,0.00010958,2]
[340415400,1729224652086,-1445.22,0.00010958,2]
[340415401,1729224652095,-500.0,0.00010958,2]
[340415402,1729224652105,-2403.28391966,0.00010958,2]
[340415403,1729224652118,-463.3999995,0.00010958,2]
[340415404,1729224652133,-426.85608084,0.00010958,2]
[340415405,1729224652142,-167.99348353,0.00010958,2]
[340415406,1729224652154,-332.00651647,0.00010958,2]
[340415407,1729224652163,-152.56194777,0.00010958,2]
[340415408,1729224652174,-754.9399989,0.00010958,2]
[340415409,1729224652186,-537.71805333,0.00010958,2]
[340415410,1729224652195,-524.60734622,0.00010958,2]
[340415411,1729224652204,-188.46521861,0.00010958,2]
[340415412,1729224652213,-500.0,0.00010958,2]
[340415413,1729224652222,-807.46722764,0.00010958,2]
[340415414,1729224652236,-637.75277236,0.00010958,2]
[340415415,1729224652245,-3293.54,0.00010958,2]
[340415416,1729224652254,-1445.22,0.00010958,2]
[340415417,1729224652263,-500.0,0.00010958,2]
[340415418,1729224652271,-500.0,0.00010958,2]
[340415419,1729224652280,-3293.54,0.00010958,2]
[340415420,1729224652289,-1445.22,0.00010958,2]
[340415421,1729224652299,-500.0,0.00010958,2]
[340415422,1729224652308,-500.0,0.00010958,2]
[340415423,1729224652317,-987.28986427,0.00010958,2]
[340415424,1729224652333,-457.93013573,0.00010958,2]
[340415425,1729224652342,-542.06986427,0.00010958,2]
[340415426,1729224652353,-1102.39785248,0.00010958,2]
[340415427,1729224652364,-1649.07228325,0.00010958,2]
[340415428,1729224652373,-500.0,0.00010958,2]
[340415429,1729224652382,-136.74943389,0.00010958,2]
[340415430,1729224652395,-363.25056611,0.00010958,2]
[340415431,1729224652404,-1445.22,0.00010958,2]
[340415432,1729224652415,-1456.54004313,0.00010958,2]
[340415433,1729224652428,-1836.99995687,0.00010958,2]
[340415434,1729224652437,-307.40414587,0.00010958,2]
[340415435,1729224652449,-192.59585413,0.00010958,2]
[340415436,1729224652458,-500.0,0.00010958,2]
[340415437,1729224652467,-548.06728647,0.00010958,2]
[340415438,1729224652480,-897.15271353,0.00010958,2]
[340415439,1729224652489,-70.34060736,0.00010958,2]
[340415440,1729224652500,-684.93719709,0.00010958,2]
[340415441,1729224652511,-1819.10858964,0.00010958,2]
[340415442,1729224652523,-719.15360591,0.00010958,2]
[340415443,1729224652532,-500.0,0.00010958,2]
[340415444,1729224652541,-500.0,0.00010958,2]
[340415445,1729224652550,-747.99639359,0.00010958,2]
[340415446,1729224652562,-697.22360641,0.00010958,2]
[340415447,1729224652571,-3293.54,0.00010958,2]
[340415448,1729224652581,-216.61661695,0.00010958,2]
[340415449,1729224652590,-500.0,0.00010958,2]
[340415450,1729224652601,-1445.22,0.00010958,2]
[340415451,1729224652610,-1287.85057352,0.00010958,2]
[340415452,1729224652625,-2005.68942648,0.00010958,2]
[340415453,1729224652634,-1150.52,0.00010958,2]
[340415454,1729224652644,-500.0,0.00010958,2]
[340415455,1729224652653,-1445.22,0.00010958,2]
[340415456,1729224652663,-3293.54,0.00010958,2]
[340415457,1729224652672,-536.9954289,0.00010958,2]
[340415458,1729224652687,-361.855006,0.00010958,2]
[340415459,1729224652698,-251.6695651,0.00010958,2]
[340415460,1729224652709,-500.0,0.00010958,2]
[340415461,1729224652718,-1445.22,0.00010958,2]
[340415462,1729224652730,-3293.54,0.00010958,2]
[340415463,1729224652740,-1150.52,0.00010958,2]
[340415464,1729224652750,-1445.22,0.00010958,2]
[340415465,1729224652760,-500.0,0.00010958,2]
[340415466,1729224652770,-1482.94,0.00010958,2]
[340415467,1729224652781,-3293.54,0.00010958,2]
[340415468,1729224652793,-1445.22,0.00010958,2]
[340415469,1729224652803,-500.0,0.00010958,2]